Cogmind - Beta 10.2 @@@ ROGUE MODE // 2021.07.06 @ 17:53:14 Player: cavemonk Result: Destroyed by G-34 Mercenary with Small Laser Performance ------------- Evolutions (0) 0 Regions Visited (1) 200 Robots Destroyed (13) 65 Value Destroyed (139) 139 Prototype IDs (0) 0 Alien Tech Used (0) 0 Bonus (0) 0 TOTAL SCORE: 404 Bonus ------- None Cogmind --------- Core Integrity 0/250 Matter 186/300 Energy 98/100 System Corruption 35% Temperature Cool (6) Movement Core (50) Location -10/Materials Parts ------- > --- POWER (1) -------- (None) > --- PROPULSION (2) --- (None) > --- UTILITY (2) ------ (None) > --- WEAPON (2) ------- (None) > --- INVENTORY (4) ---- Ion Engine Wheel Light Assault Rifle Mining Laser Peak State ------------ > --- POWER ------------ Ion Engine > --- PROPULSION ------- Aluminum Leg Aluminum Leg > --- UTILITY ---------- Small Storage Unit Improved Terrain Scanner > --- WEAPON ----------- Small Laser Small Laser > --- INVENTORY -------- Ion Engine Light Treads Light Treads Wheel Compact Wheel Light Assault Rifle [Rating: 8] Favorites ----------- Power Ion Engine Engine Ion Engine Propulsion Light Treads Treads Light Treads Leg Aluminum Leg Wheel Wheel Utility Small Storage Unit Device Improved Terrain Scanner Storage Small Storage Unit Weapon Small Laser Energy Gun Small Laser Special Weapon Mining Laser Build | -11 -10 ------- Run | Scr Mat Slots Evolved . | . . Power . | . . Propulsion . | . . Utility . | . . Weapon . | . . Parts Attached 10 | 3 7 Power 2 | . 2 Engine 2 | . 2 Core . | . . Reactor . | . . Propulsion 3 | 2 1 Treads 2 | 1 1 Leg . | . . Wheel 1 | 1 . Hover . | . . Flight . | . . Utility 1 | 1 . Device 1 | 1 . Storage . | . . Processor . | . . Hackware . | . . Protection . | . . Artifact . | . . Weapon 4 | . 4 Energy Gun 2 | . 2 Energy Cannon . | . . Ballistic Gun . | . . Ballistic Cannon . | . . Launcher . | . . Special Weapon 2 | . 2 Impact Weapon . | . . Slashing Weapon . | . . Piercing Weapon . | . . Special Melee Weapon . | . . Unidentified Prototypes . | . . Parts Lost 3 | . 3 Power . | . . Propulsion . | . . Utility 1 | . 1 Weapon 2 | . 2 Highest Loss Streak 2 | . 2 Average Slot Usage (%) 93 | . 93 Engine 13 | . 13 Treads 26 | . 26 Device 12 | . 12 Storage 13 | . 13 Energy Gun 24 | . 24 Special Weapon 1 | . 1 Naked Turns 21 | . 21 Heaviest Build 12 | 12 12 Greatest Support 20 | 20 10 Greatest Overweight (x) 1 | 1 1 Average Overweight (x) . | . . Largest Inventory Capacity 6 | 6 6 Average Capacity 5 | 6 5 Most Carried 6 | 6 4 Average Carried 4 | 5 4 Final Capacity 6 | 6 4 Final Carried 4 | 4 4 Class Distribution -------------------- 100% | Mutant Dominant Class ---------------- Mutant | -10/Materials Resources | -11 -10 ----------- Run | Scr Mat Matter Collected 311 | 230 81 Remotely . | . . Salvage Created 323 | 67 256 Parts 27 | 6 21 Haulers Intercepted . | . . Recyclers Shooed . | . . Parts Field Recycled . | . . Retrieved Matter . | . . Parts Self-Destructed . | . . Prevented . | . . Kills | -11 -10 ------- Run | Scr Mat Combat Hostiles Destroyed 5 | . 5 Guns 5 | . 5 Classes Destroyed 6 | 2 4 Worker 4 | . 4 Builder 1 | . 1 Tunneler 1 | 1 . Recycler 2 | 1 1 Swarmer 3 | . 3 Grunt 2 | . 2 Best Kill Streak 5 | 1 5 Combat Bots Only 5 | . 5 Max Kills in Single Turn 1 | 1 1 Gunslinging . | . . Exploded . | . . Melee . | . . Uniques/NPCs Destroyed . | . . Combat | -11 -10 -------- Run | Scr Mat Damage Taken 455 | . 455 Core 258 | . 258 Absorbed by Shields . | . . Core Remaining (%) 100 | 100 . Volleys Fired 256 | 8 248 Largest 2 | 2 2 Hottest 100 | 80 100 Shots Fired 286 | 16 270 Gun 268 | 16 252 Cannon . | . . Launcher . | . . Special 18 | . 18 Kinetic . | . . Thermal 286 | 16 270 Explosive . | . . Electromagnetic . | . . Robot Hit Streak 17 | 4 17 Robot Miss Streak 1 | 1 1 Penetration Max . | . . Secondary Targets . | . . Shots Hit Robots 45 | 6 39 Core Hits 19 | 3 16 Critical Hits . | . . Critical Kills . | . . Critical Parts Destroyed . | . . Melee Attacks . | . . Impact . | . . Slashing . | . . Piercing . | . . Sneak Attacks . | . . Combat Hostiles . | . . Follow-up Attacks . | . . Damage Inflicted 563 | 65 498 Guns 471 | 65 406 Cannons . | . . Explosions . | . . Melee . | . . Ramming 92 | . 92 Kinetic . | . . Thermal 471 | 65 406 Explosive . | . . Electromagnetic . | . . Impact . | . . Slashing . | . . Piercing . | . . Highest Corruption 35 | . 35 Average Corruption 19 | . 19 Corruption Purged . | . . Effects 4 | . 4 Message Errors 2 | . 2 Heat Flow Errors 1 | . 1 Energy Discharges 1 | . 1 Overload Shots . | . . Overflow Damage . | . . Projectiles . | . . Explosions . | . . Melee . | . . Knockbacks . | . . Impact . | . . Kinetic . | . . Secondary . | . . Self-Inflicted Damage 92 | . 92 Shots . | . . Rammed . | . . Targets Rammed . | . . Kicked . | . . Crushed . | . . Highest Temperature 431 | 108 431 Average Temperature 279 | 47 291 Received Heat Transfer 66 | . 66 Effects 41 | . 41 Shutdowns 10 | . 10 Energy Bleed 7 | . 7 Interference 5 | . 5 Matter Decay 3 | . 3 Short Circuit 4 | . 4 Damage (minor) 8 | . 8 Damage (major) 4 | . 4 Siege Activations . | . . Robots Corrupted . | . . Combat Hostiles . | . . Parts Fried . | . . Impact Corruptions . | . . Robots Melted . | . . Combat Hostiles . | . . Parts Melted 3 | 1 2 Heat Transferred 1075 | 150 925 Parts Sabotaged . | . . Parts Stolen . | . . Parts Stripped . | . . Power Chain Reactions . | . . Missiles Intercepted . | . . Alert | -11 -10 ------- Run | Scr Mat Peak Influence 156 | 10 156 Initial 6 | . 6 Average 63 | 7 70 Maximum Alert Level . | . . Low Security (%) 100 | 100 100 Level 1 . | . . Level 2 . | . . Level 3 . | . . Level 4 . | . . Level 5 . | . . High Security . | . . Max Security . | . . Squads Dispatched 1 | . 1 Investigation 1 | . 1 Extermination . | . . Reinforcement . | . . Assault . | . . Garrison . | . . Intercept . | . . Construction Impeded . | . . Haulers Reinforced . | . . Stealth | -11 -10 --------- Run | Scr Mat Distress Signals . | . . Communications Jammed . | . . Distress Signals . | . . Times Spotted 10 | . 10 Peak Tracking Total 5 | . 5 Tactical Retreats . | . . Traps | -11 -10 ------- Run | Scr Mat Traps Triggered . | . . Indirectly . | . . Trap Hack Attempts . | . . Triggered . | . . Disarmed . | . . Reprogrammed . | . . Reused . | . . Traps Extracted . | . . Installed . | . . Triggered . | . . Machines | -11 -10 ---------- Run | Scr Mat Machines Disabled . | . . Max in Single Turn . | . . Machines Sabotaged . | . . Garrisons Compromised . | . . Overloaded Fab Kills . | . . Fab Network Shutdowns . | . . Hacking | -11 -10 --------- Run | Scr Mat Machines Accessed 1 | . 1 Terminals 1 | . 1 Fabricators . | . . Repair Stations . | . . Recycling Units . | . . Scanalyzers . | . . Garrison Access . | . . Total Hacks 2 | . 2 Successful 1 | . 1 Failed 1 | . 1 Catastrophic . | . . Database Lockouts . | . . Manual 2 | . 2 Terminals 2 | . 2 Fabricators . | . . Repair Stations . | . . Recycling Units . | . . Scanalyzers . | . . Garrison Access . | . . Terminal Hacks . | . . Fabricator Hacks . | . . Repair Station Hacks . | . . Recycling Unit Hacks . | . . Scanalyzer . | . . Garrison Access Hacks . | . . Unauthorized Hacks 1 | . 1 Terminals 1 | . 1 Sabotage 1 | . 1 Fabricators . | . . Repair Stations . | . . Recycling Units . | . . Scanalyzers . | . . Garrison Access . | . . Data Cores Recovered . | . . Used . | . . Hacking Detections . | . . Full Trace Events . | . . Feedback Events . | . . Feedback Blocked . | . . Robot Schematics Acquired . | . . Robots Built . | . . Matter . | . . Time . | . . Total Robot Build Rating . | . . Part Schematics Acquired . | . . Parts Built . | . . Matter . | . . Time . | . . Total Part Build Rating . | . . Parts Repaired . | . . Time . | . . Parts Recycled . | . . Recycled Matter . | . . Retrieved Matter . | . . Retrieved Components . | . . Parts Scanalyzed . | . . Part Schematics Acquired . | . . Parts Damaged . | . . Bothacking | -11 -10 ------------ Run | Scr Mat Used RIF Installer . | . . Robots Hacked . | . . Non-combat . | . . Combat . | . . Robot Hacks Applied . | . . Relay Couplers Released . | . . Robots Rewired . | . . Allies Hacked . | . . Hacks Repelled . | . . Allies | -11 -10 -------- Run | Scr Mat Total Allies . | . . Largest Group . | . . Highest-Rated Group . | . . Highest-Rated Ally . | . . Total Orders . | . . Ally Attacks . | . . Total Damage . | . . Kills . | . . Allies Corrupted . | . . Allies Melted . | . . Intel | -11 -10 ------- Run | Scr Mat Robot Analysis Total . | . . Derelict Logs Recovered . | . . Drone Launches . | . . Drone Recoveries . | . . Exploration | -11 -10 ------------- Run | Scr Mat Turns Passed 810 | 90 720 Spaces Moved 140 | 43 97 Core 43 | . 43 Treads 20 | 20 . Legs 21 | 21 . Wheels 56 | 2 54 Hover . | . . Flight . | . . Fastest Speed 50 | 90 50 Average Speed 92 | 137 72 Slowest Speed 160 | 160 90 Overloaded Moves . | . . Propulsion Burnouts . | . . Robots Hopped . | . . Cave-ins Triggered . | . . Exploration Rate (%) 13 | 3 23 Regions Visited 1 Branch Regions . Pre-discovered Areas . | . . Known Exits Taken . | . . Unknown Exits Taken 1 | 1 . Scrap Searched . | . . Spaces Dug . | . . Terrain Destroyed 6 | . 6 Melee . | . . Projectile 6 | . 6 AOE . | . . Terrain Rammed 46 | . 46 Walls Destroyed . | . . Machines Disabled . | . . Actions | -11 -10 --------- Run | Scr Mat Total 459 | 58 401 Wait 3 | . 3 Move 139 | 42 97 Hop . | . . Pick Up 1 | 1 . Fast Attach 2 | 2 . Attach 1 | 1 . Detach . | . . Swap 7 | . 7 Drop 4 | 4 . Fire 256 | 8 248 Melee . | . . Ram 46 | . 46 Kick . | . . Crush . | . . Escape Stasis . | . . Rewire . | . . Trap . | . . Miscellaneous . | . . Route ------- -11/Scrapyard -10/Materials (discovered 1 exit: [*Mat]) History --------- Turn | Location | Event 19 | -11/Scrapyard | Discovered new exit (range 3) 91 | -11/Scrapyard | Entered Materials 310 | -10/Materials | Build established: Mutant 737 | -10/Materials | Core integrity fell below 50% 753 | -10/Materials | System corruption reached 10% 764 | -10/Materials | Core integrity fell below 20% 782 | -10/Materials | System corruption reached 30% 790 | -10/Materials | Released all parts (4) 811 | -10/Materials | Discovered new exit (range 4) 811 | -10/Materials | Destroyed by G-34 Mercenary with Small Laser Last Messages --------------- 00787_ Slammed into Wall. 00787_ Destabilizing: System corrupted (+2). 00787_ R-06 Scavenger collects Sml. Matter Pod. 00789_ Slammed into Wall. 00789_ Destabilizing: System corrupted (+2). 00790_ Released Broken Lgt. Treads. 00790_ Released Sml. Storage Unit. 00790_ Released Broken Ion Engine. 00791_ Acquired 18 matter. 00792_ Acquired 14 matter. 00793_ Acquired 49 matter. 00801_ System corrupted: Heat flow error (+112). 00809_ Connecting with Terminal... 00809_ Current location identified: Materials >>Force(Sabotage) SYSTEM_VULNERABLE[Nuclear Reactor] NETWORK_OVERLOAD_FAIL 00809_ ALERT: Suspicious activity at Terminal M008. Dispatching Investigation squad. 00811_ EXIT=FOUND Map ----- +----------------------------------------------------+ | | | | | | | | | | | | | | | | | | | | | | | | | | | | | ?????????????????????????????????????????????????? | | ?????????????????????????????????????????????????? | | ?????????????????????????????????????????????????? | | ?????????????????????????????????????????????????? | | ?????????????????????????????????????????????????? | | ?????????????????????????????????????????????????? | | ??????????????????????#####??????????????????????? | | ??????????????????????#g g#?????????????????????## | | ??????????????????????# < #?????????????????????# | | ??????????????????????# g #?###???######????????# | | ??????????????????????# ###T##### ##+####### | | ??????????????????????# @ m | | ??????????????????????# | | ??????????????????????# ######### # ## | | ??????????????????????# #???????###### ## | | ??????????????????????# #????????????#!!==]]## | | ??????????????????????# #????????????#!!==]]## | | ??????????????????????# #????????????######### | | ?????????????????????? #???????????????????## | | ????????????????????? #????????????????????# | | ????????????????????? ???????????????#?????# | | ????????????????????### ??????????????#???#??# | | ??????????????????????# ??????????????#??????# | | ??????????????????????# ?????????????????????# | | ??????????????????????+ ?????????????????????# | | ??????????????????????# ???????????????#?????# | | ??????????????????????? ?????????????????????# | | ???????????????????????????????????????######### | | ????????????????????????????????????# +% | | ????????????????????????????????????# """ # % | | ????????????????????????????????????? ? """"" #=! | | ??????????????????????????????????#??????"""""?# | | ?????????????????????????????????????????"""""?# | | ?????????????????????????????????????? ??"""??# | | ??????????????????????????????????????????? ??# | | ???????????????????????????????????????????#?#?# | +----------------------------------------------------+ Best States ------------- Heat Dissipation 25 Energy Generation 10 Energy Capacity 250 Matter Stores 300 Matter Capacity 300 Sight Range 16 Terrain Scan Range 16 Terrain Scan Density 10 Evasion (%) 50 Recoil Reduction 2 Item Schematics ----------------- None Robot Schematics ------------------ None Fabricated ------------ Nothing Alien Tech Used ----------------- None Achievements -------------- None Challenges ------------ None Game ------ Seed DisposableAdvancedBattery Manual? 0 Play Time 00:07:42 Cumulative 242.8 hours Start 2021.07.06 @ 17:48:52 End 2021.07.06 @ 17:53:14 Sessions 1 Manual Loads 0 Difficulty Rogue Special Mode None Game No. 178 Rogue 178 Adventurer 0 Explorer 0 Win Type - Total 5 Types 5/0/0/0/0/0/0/0/0 Lore% 49 Gallery% 72 Achievement% 56 Wizard Run 0 Options --------- ASCII 0 Keyboard 0 Movement Numpad Keybinds 0 Fullscreen 2 Font 18/TerminusBold Map View 76x50 Tactical HUD 1 Map Filters NONE Filters NONE Steam 1 RUN: a503be48-c2b6-4e6e-b737-8e737af881c6